{"text_format":"1","workbook":"xlsx","n_sheets":1,"sheets":["Relatório Liquidação"],"not_rendered":{"charts":0,"images":1,"macros":0,"external_links":2,"defined_names":9,"comments":0,"pivot_tables":0},"unopened":[],"bounds":{"document_bytes":16777216,"sheet_cells":100000,"rows_first":2000,"rows_last":500,"rows_between":2000,"halvings":0,"cell_chars":16384,"cell_head_chars":4096},"cells_cut":0,"cells_raw":0,"read":"whole","date_system":"1900"}

{"sheet":"Relatório Liquidação","index":0,"n_rows":101,"n_cols":25,"rows_kept":101,"cut":false,"hidden":false,"merged":[]}
[null,null,null,null,null,null,null,null,null,null,null,null,null,null,null,null,null,null,null,null,null,null,null,-4.1836756281554699E-11]
[null,null,null,null,"CRI Resort do Lago IV - Mapa de Liquidação"]
[]
[]
[]
[]
[null,"Natureza do Pagamento","Série","Data ","PU\nLiquidação","Quantidade","Lançamento","Razão Social","CNPJ","Número","Banco","Agência","Conta","ISS","Valor do Serviço","Gross-Up","Valor Bruto NF","Retenção NF","Retenção","Valor","Observação","Enviado para pagamento"]
[null,"Integralização",535,"2021-04-30",1000,23400,"Integralização",null,null,null,null,null,null,null,null,null,null,null,null,{"$f":"E8*F8","v":23400000},null,null,"SIM"]
[null,"Integralização",536,"2021-04-30",1001.20969126,12600,"Integralização",null,null,null,null,null,null,null,null,null,null,null,null,{"$f":"E9*F9","v":12615242.109875999},null,null,"SIM (PAGO)"]
[null,"Integralização",0,"2021-04-30",0,0,"Integralização",null,null,null,null,null,null,null,null,null,null,null,null,0]
[null,"Integralização",0,"2021-04-30",0,0,"Integralização",null,null,null,null,null,null,null,null,null,null,null,null,0]
[null,"Integralização",0,"2021-04-30",0,0,"Integralização",null,null,null,null,null,null,null,null,null,null,null,null,0]
[null,"Integralização",0,"2021-04-30",0,0,"Integralização",null,null,null,null,null,null,null,null,null,null,null,null,0]
[null,"Integralização","Total Dia",null,null,null,"Total Integralização",null,null,null,null,null,null,null,null,null,null,null,null,{"$f":"SUM(T8:T13)","v":36015242.109875999},null,null,"SIM (PAGO  PARCIALMENTE - Saldo restante: Valor)"]
[null,"Transferência",null,null,null,null,"Fee Estruturação","FORTE SECURITIZACAO E PARTICIPACOES LTDA","21.567.223/0001-05",341,"Itaú Unibanco S.A.","0869-8","12663-1","N/A",0,0.1115,{"$f":"O15/(1-P15)","v":0},6.1499999999999999E-2,{"$f":"R15*Q15","v":0},{"$f":"Q15*(1-R15)","v":0}]
[null,"Transferência",null,null,null,null,"Taxa de Sucesso","FORTE SECURITIZACAO E PARTICIPACOES LTDA","21.567.223/0001-05",341,"Itaú Unibanco S.A.","0869-8","12663-1","N/A",0,0.1115,{"$f":"O16/(1-P16)","v":0},6.1499999999999999E-2,{"$f":"R16*Q16","v":0},{"$f":"Q16*(1-R16)","v":0}]
[null,"Transferência",null,null,null,null,"Comissão Firme","FORTE SECURITIZACAO E PARTICIPACOES LTDA","21.567.223/0001-05",341,"Itaú Unibanco S.A.","0869-8","12663-1","N/A",0,0.1115,0,6.1499999999999999E-2,0,0]
[null,"Transferência",null,null,null,null,"Originador","-","-",{"$error":"#N/A"},{"$error":"#N/A"},"-","-","",0,0,0,0,0,0]
[null,"Aguardar Transferência",null,null,null,null,"Advogados - Terceiros","","","","","","","",0,0,0,0,0,0]
[null,"Aguardar Transferência",null,null,null,null,"Companhia Hipotecária","COMPANHIA HIPOTECÁRIA PIRATINI","18.282.093/0001-50",237,"Banco Bradesco S.A.",3145,"21476-0","N/A",0,9.6500000000000002E-2,0,6.1499999999999999E-2,0,0]
[null,"Aguardar Transferência",null,null,null,null,"Advogados - Assessoria","Daló e Tognotti Sociedade de Advogados","34.712.837/0001-85",341,"Itaú Unibanco S.A.",3100,"35517-5","N/A",58000,0,58000,6.1499999999999999E-2,3567,54433,null,"SIM"]
[null,"Aguardar Transferência",null,null,null,null,"Coordenador Líder","TERRA INVESTIMENTOS DTVM LTDA.","03.751.794/0001-13",237,"Banco Bradesco S.A.",560,"0156021-2","N/A",22888,9.6500000000000002E-2,25332.595462091867,0,0,25332.595462091867,null,"SIM"]
[null,"Aguardar Transferência",null,null,null,null,"Engenharia","HARCA ENGENHARIA EIRELI - ME","20.620.442/0001-48","003","Caixa Econômica Federal",1959,"00000620-5","SIM",5000,0,5000,0,0,5000]
[null,"Aguardar Transferência",null,null,null,null,"Auditoria Complementar","CONVESTE AUDFILES SERVICOS FINANCEIROS LTDA","29.758.816/0001-60",341,"Itaú Unibanco S.A.",6630,"43542-5","N/A",0,0.1115,0,6.1499999999999999E-2,0,0]
[null,"Aguardar Transferência",null,null,null,null,"Auditoria Financeira","CONVESTE AUDFILES SERVICOS FINANCEIROS LTDA","29.758.816/0001-60",341,"Itaú Unibanco S.A.",6630,"43542-5","N/A",0,0.1115,0,6.1499999999999999E-2,0,0]
[null,"Aguardar Transferência",null,null,null,null,"Implantação","CONVESTE AUDFILES SERVICOS FINANCEIROS LTDA","29.758.816/0001-60",341,"Itaú Unibanco S.A.",6630,"43542-5","N/A",44190,0.1115,49735.509285312328,6.1499999999999999E-2,3058.7338210467083,46676.775464265622,null,"SIM"]
[null,"Aguardar Transferência",null,null,null,null,"Agente Fiduciário","SIMPLIFIC PAVARINI DISTRIBUIDORA DE TÍTULOS E VALORES MOBILIÁRIOS LTDA.","15.227.994/0001-50",237,"Banco Bradesco S.A.","3428-2","714.443-1","N/A",18000,9.6500000000000002E-2,19922.523519645823,6.1499999999999999E-2,1225.2351964582181,18697.288323187604,null,"SIM"]
[null,"Aguardar Transferência",null,null,null,null,"Agente Custodiante","SIMPLIFIC PAVARINI DISTRIBUIDORA DE TÍTULOS E VALORES MOBILIÁRIOS LTDA.","15.227.994/0001-50",237,"Banco Bradesco S.A.","3428-2","714.443-1","N/A",3500,9.6500000000000002E-2,3873.8240177089101,6.1499999999999999E-2,238.24017708909795,3635.5838406198122,null,"SIM"]
[null,"Aguardar Transferência",null,null,null,null,"Agente Registrador CCI","SIMPLIFIC PAVARINI DISTRIBUIDORA DE TÍTULOS E VALORES MOBILIÁRIOS LTDA.","15.227.994/0001-50",237,"Banco Bradesco S.A.","3428-2","714.443-1","N/A",142200,9.6500000000000002E-2,157387.935805202,6.1499999999999999E-2,9679.358052019923,147708.57775318206,null,"SIM"]
[null,"Aguardar Transferência",null,null,null,null,"Despachante","Duudocs Serviços Administrativos Ltda","32.437.359/0001-17",341,"Itaú Unibanco S.A.","0350","32511-4","N/A",0,0,0,0,0,0]
[null,"Provisão de Despesas ",null,null,null,null,"Registro CCI B3 (Débito Automático)","Forte Securitizadora S/A","12.979.898/0001-70",null,null,null,null,null,null,null,null,null,{"$f":"+R31*Q31","v":0},0]
[null,"Provisão de Despesas ",null,null,null,null,"Registro CRI B3 (Débito Automático)","Forte Securitizadora S/A","12.979.898/0001-70",null,null,null,null,null,null,null,null,null,0,21873]
[null,"Provisão de Despesas ",null,null,null,null,"Custos Mov. CRI/CCI B3 (Estimado-Deb. Aut.)","Forte Securitizadora S/A","12.979.898/0001-70",null,null,null,null,null,null,null,null,null,0,0]
[null,"Provisão de Despesas ",null,null,null,null,"Análise B3","Forte Securitizadora S/A","12.979.898/0001-70",null,null,null,null,null,null,null,null,null,{"$f":"+R34*Q34","v":0},0]
[null,"Provisão de Despesas ",null,null,null,null,"Taxa de Registro - Anbima","Forte Securitizadora S/A","12.979.898/0001-70",null,null,null,null,null,null,null,null,null,{"$f":"+R35*Q35","v":0},3136]
[null,"Provisão de Despesas ",null,null,null,null,"Rating","Forte Securitizadora S/A","12.979.898/0001-70",null,null,null,null,null,null,null,null,null,{"$f":"+R36*Q36","v":0},{"$f":"'[2]Criar Mapa'!K25","v":23450}]
[null,"Provisão de Despesas ",null,null,null,null,"IOF","Forte Securitizadora S/A","12.979.898/0001-70",null,null,null,null,null,null,null,null,null,{"$f":"+R37*Q37","v":0},{"$f":"'[2]Criar Mapa'!K26","v":0}]
[null,"Provisão de Despesas ",null,null,null,null,"Provisão Diversa - Advogado","","","","","","","",0,0,{"$f":"O38/(1-P38)","v":0},0,{"$f":"R38*Q38","v":0},{"$f":"Q38*(1-R38)","v":0}]
[null,null,null,null,null,null,"Retenção de Impostos sobre NFs",null,null,null,null,null,null,null,null,null,null,null,null,{"$f":"SUM(T40:T49)","v":17768.567246613944}]
[null,"Retenção de Impostos",null,null,null,null,"Imposto - TForte Participação Ltda","TForte Participação Ltda","21.567.223/0001-05",null,null,null,null,null,null,null,null,null,null,{"$f":"SUMIF($I$15:$I$38,I40,$S$15:$S$38)","v":0}]
[null,"Retenção de Impostos",null,null,null,null,"Imposto -  Originador","-","-",null,null,null,null,null,null,null,null,null,null,{"$f":"SUMIF($I$15:$I$38,I41,$S$15:$S$38)","v":0}]
[null,"Retenção de Impostos",null,null,null,null,"Imposto - Assessor Legal Terceiros","","",null,null,null,null,null,null,null,null,null,null,0]
[null,"Retenção de Impostos",null,null,null,null,"Imposto - Companhia Hipotecária","COMPANHIA HIPOTECÁRIA PIRATINI","18.282.093/0001-50",null,null,null,null,null,null,null,null,null,null,{"$f":"SUMIF($I$15:$I$38,I43,$S$15:$S$38)","v":0}]
[null,"Retenção de Impostos",null,null,null,null,"Imposto - Assessor Legal","Daló e Tognotti Sociedade de Advogados","34.712.837/0001-85",null,null,null,null,null,null,null,null,null,null,{"$f":"SUMIF($I$15:$I$38,I44,$S$15:$S$38)","v":3567}]
[null,"Retenção de Impostos",null,null,null,null,"Imposto - Coordenador Líder","TERRA INVESTIMENTOS DTVM LTDA.","03.751.794/0001-13",null,null,null,null,null,null,null,null,null,null,0]
[null,"Retenção de Impostos",null,null,null,null,"Imposto - Engenharia","HARCA ENGENHARIA EIRELI - ME","20.620.442/0001-48",null,null,null,null,null,null,null,null,null,null,0]
[null,"Retenção de Impostos",null,null,null,null,"Imposto - Auditoria","CONVESTE AUDFILES SERVICOS FINANCEIROS LTDA","29.758.816/0001-60",null,null,null,null,null,null,null,null,null,null,3058.7338210467083]
[null,"Retenção de Impostos",null,null,null,null,"Imposto - Agente Fiduciário","SIMPLIFIC PAVARINI DISTRIBUIDORA DE TÍTULOS E VALORES MOBILIÁRIOS LTDA.","15.227.994/0001-50",null,null,null,null,null,null,null,null,null,null,11142.833425567238,null,null,null,null,"Integralização"]
[null,"Retenção de Impostos",null,null,null,null,"Imposto - Agente Custodiante","-","-",null,null,null,null,null,null,null,null,null,null,0,null,null,null,null,"Integralização"]
[null,"Transferência",null,null,null,null,"Reembolso Despesas","Forte Securitizadora S/A","12.979.898/0001-70",341,"Itaú Unibanco S.A.","0869","13447-8",null,null,null,null,null,null,0]
[null,"Transferência",null,null,null,null,"Retenção de PMT","Forte Securitizadora S/A","12.979.898/0001-70",341,"Itaú Unibanco S.A.","0869","13674-7",null,null,null,null,null,null,0,592721.77]
[null,"Transferência",null,null,null,null,"Quitação de Dividas","Forte Securitizadora S/A","12.979.898/0001-70",341,"Itaú Unibanco S.A.","0869","13674-7",null,null,null,null,null,null,0,0]
[null,"Transferência",null,null,null,null,"Fundo de Juros","Forte Securitizadora S/A","12.979.898/0001-70",341,"Itaú Unibanco S.A.","0869","13674-7",null,null,null,null,null,null,0,0]
[null,"Transferência",null,null,null,null,"Fundo de Concessão","Forte Securitizadora S/A","12.979.898/0001-70",341,"Itaú Unibanco S.A.","0869","13674-7",null,null,null,null,null,null,0,0]
[null,"Transferência",null,null,null,null,"Fundo de Despesa","Forte Securitizadora S/A","12.979.898/0001-70",341,"Itaú Unibanco S.A.","0869","13674-7",null,null,null,null,null,null,0,0]
[null,"Transferência",null,null,null,null,"Fundo de Reserva","Forte Securitizadora S/A","12.979.898/0001-70",341,"Itaú Unibanco S.A.","0869","13674-7",null,null,null,null,null,null,467530.7217860407,1191677.98]
[null,"Transferência",null,null,null,null,"Fundo de Obra","Forte Securitizadora S/A","12.979.898/0001-70",341,"Itaú Unibanco S.A.","0869","13674-7",null,null,null,null,null,null,0,16914202.079999998]
[null,"Transferência",null,null,null,null,"Fundo Diverso 1","Forte Securitizadora S/A","12.979.898/0001-70",341,"Itaú Unibanco S.A.","0869","13674-7",null,null,null,null,null,null,{"$f":"'[2]Criar Mapa'!K36","v":0}]
[null,"Transferência",null,null,null,null,"Fundo Diverso 2","Forte Securitizadora S/A","12.979.898/0001-70",341,"Itaú Unibanco S.A.","0869","13674-7",null,null,null,null,null,null,{"$f":"'[2]Criar Mapa'!K37","v":0}]
[null,"Aguardar Transferência",null,null,null,null,"Livre Destinação","S.P.E. RESORT DO LAGO CALDAS NOVAS LTDA.","20.269.496/0001-00",237,"Banco Bradesco S.A.",3684,"2339-6",null,null,null,null,null,null,13647765.82]
[null,"Transferência",null,null,null,null,"Livre Destinação","S.P.E. RESORT DO LAGO CALDAS NOVAS LTDA.","20.269.496/0001-00",237,"Banco Bradesco S.A.",3684,"2339-6",null,null,null,null,null,null,21532234.18]
[null,"Total Dia",null,null,null,null,null,null,null,null,null,null,null,null,null,null,null,null,null,{"$f":"-SUM(-T14,T15:T39,T50:T61)","v":0},null,null,null,null,"Reembolso Forte"]
[]
[null,"Integralização",535,"2021-05-03",1000.82477517,13325,"Integralização",null,null,null,null,null,null,null,null,null,null,null,null,{"$f":"E64*F64","v":13335990.129140249}]
[null,"Integralização",536,"2021-05-03",1015.55010545,3500,"Integralização",null,null,null,null,null,null,null,null,null,null,null,null,{"$f":"E65*F65","v":3554425.3690750003}]
[null,"Integralização","Total Dia",null,null,null,"Total Integralização",null,null,null,null,null,null,null,null,null,null,null,null,{"$f":"SUM(T64:T65)","v":16890415.498215251}]
[null,"Transferência",null,null,null,null,"Fee Estruturação","FORTE SECURITIZACAO E PARTICIPACOES LTDA","21.567.223/0001-05",341,"Itaú Unibanco S.A.","0869-8","12663-1","N/A",{"$f":"(1%*T66)+(1%*T14)","v":529056.57608091249},0.1115,{"$f":"O67/(1-P67)","v":595449.15709725663},6.1499999999999999E-2,{"$f":"R67*Q67","v":36620.123161481279},{"$f":"Q67*(1-R67)","v":558829.0339357754}]
[null,"Transferência",null,null,null,null,"Taxa de Sucesso","FORTE SECURITIZACAO E PARTICIPACOES LTDA","21.567.223/0001-05",341,"Itaú Unibanco S.A.","0869-8","12663-1","N/A",{"$f":"(1%*T66)+(1%*T14)","v":529056.57608091249},0.1115,{"$f":"O68/(1-P68)","v":595449.15709725663},6.1499999999999999E-2,{"$f":"R68*Q68","v":36620.123161481279},{"$f":"Q68*(1-R68)","v":558829.0339357754}]
[null,null,null,null,null,null,"Retenção de Impostos sobre NFs",null,null,null,null,null,null,null,null,null,null,null,null,{"$f":"SUM(T70:T70)","v":73240.246322962557}]
[null,"Retenção de Impostos",null,null,null,null,"Imposto - TForte Participação Ltda","TForte Participação Ltda","21.567.223/0001-05",null,null,null,null,null,null,null,null,null,null,{"$f":"SUMIF($I$67:$I$68,I70,$S$67:$S$68)","v":73240.246322962557}]
[null,"Transferência",null,null,null,null,"Retenção de PMT","Forte Securitizadora S/A","12.979.898/0001-70",341,"Itaú Unibanco S.A.","0869","13674-7",null,null,null,null,null,null,{"$f":"U51-T51+U71","v":865325.5},272603.73]
[null,"Transferência",null,null,null,null,"Fundo de Reserva","Forte Securitizadora S/A","12.979.898/0001-70",341,"Itaú Unibanco S.A.","0869","13674-7",null,null,null,null,null,null,{"$f":"U56-T56+U72","v":1272224.4882139592},548077.23]
[null,"Transferência",null,null,null,null,"Fundo de Obra","Forte Securitizadora S/A","12.979.898/0001-70",341,"Itaú Unibanco S.A.","0869","13674-7",null,null,null,null,null,null,13561967.195806775]
[null,"Transferência",null,null,null,null,"Livre Destinação","S.P.E. RESORT DO LAGO CALDAS NOVAS LTDA.","20.269.496/0001-00",237,"Banco Bradesco S.A.",3684,"2339-6",null,null,null,null,null,null,{"$f":"-SUM(-T66,T67:T69,T71:T73)","v":0}]
[null,"Total Dia",null,null,null,null,null,null,null,null,null,null,null,null,null,null,null,null,null,{"$f":"-SUM(-T66,T67:T69,T71:T74)","v":0},null,null,null,null,"Reembolso Forte"]
[]
[null,"Integralização",536,"2021-05-04",1001.9233957,3675,"Integralização",null,null,null,null,null,null,null,null,null,null,null,null,{"$f":"E77*F77","v":3682068.4791975003}]
[null,"Integralização","Total Dia",null,null,null,"Total Integralização",null,null,null,null,null,null,null,null,null,null,null,null,{"$f":"SUM(T77:T77)","v":3682068.4791975003}]
[null,"Transferência",null,null,null,null,"Fee Estruturação","FORTE SECURITIZACAO E PARTICIPACOES LTDA","21.567.223/0001-05",341,"Itaú Unibanco S.A.","0869-8","12663-1","N/A",{"$f":"1%*T78","v":36820.684791975007},0.1115,{"$f":"O79/(1-P79)","v":41441.401003911094},6.1499999999999999E-2,{"$f":"R79*Q79","v":2548.6461617405321},{"$f":"Q79*(1-R79)","v":38892.754842170565}]
[null,"Transferência",null,null,null,null,"Taxa de Sucesso","FORTE SECURITIZACAO E PARTICIPACOES LTDA","21.567.223/0001-05",341,"Itaú Unibanco S.A.","0869-8","12663-1","N/A",{"$f":"1%*T78","v":36820.684791975007},0.1115,{"$f":"O80/(1-P80)","v":41441.401003911094},6.1499999999999999E-2,{"$f":"R80*Q80","v":2548.6461617405321},{"$f":"Q80*(1-R80)","v":38892.754842170565}]
[null,null,null,null,null,null,"Retenção de Impostos sobre NFs",null,null,null,null,null,null,null,null,null,null,null,null,{"$f":"SUM(T82:T82)","v":5097.2923234810642},null,null,null,null,"Reembolso Forte"]
[null,"Retenção de Impostos",null,null,null,null,"Imposto - TForte Participação Ltda","TForte Participação Ltda","21.567.223/0001-05",null,null,null,null,null,null,null,null,null,null,{"$f":"SUMIF($I$79:$I$80,I82,$S$79:$S$80)","v":5097.2923234810642}]
[null,"Transferência",null,null,null,null,"Retenção de PMT","Forte Securitizadora S/A","12.979.898/0001-70",341,"Itaú Unibanco S.A.","0869","13674-7",null,null,null,null,null,null,64918.39]
[null,"Transferência",null,null,null,null,"Fundo de Reserva","Forte Securitizadora S/A","12.979.898/0001-70",341,"Itaú Unibanco S.A.","0869","13674-7",null,null,null,null,null,null,130517.18]
[null,"Transferência",null,null,null,null,"Fundo de Obra","Forte Securitizadora S/A","12.979.898/0001-70",341,"Itaú Unibanco S.A.","0869","13674-7",null,null,null,null,null,null,3403750.1071896777]
[null,"Transferência",null,null,null,null,"Livre Destinação","S.P.E. RESORT DO LAGO CALDAS NOVAS LTDA.","20.269.496/0001-00",237,"Banco Bradesco S.A.",3684,"2339-6",null,null,null,null,null,null,{"$f":"-SUM(-T78,T79:T81,T83:T85)","v":0}]
[null,"Total Dia",null,null,null,null,null,null,null,null,null,null,null,null,null,null,null,null,null,{"$f":"-SUM(-T78,T79:T81,T83:T86)","v":0}]
[]
[]
[]
[]
[]
[]
[null,null,null,null,null,null,null,null,null,null,null,null,null,null,null,null,null,null,null,"Check Impostos",{"$f":"ROUND(T39,2)=ROUND(SUM(S14:S62),2)","v":true}]
[]
[null,null,null,null,null,null,null,null,null,null,null,null,null,null,null,null,null,null,null,0]
[]
[]
[]
[]
[null,null,null,null,null,null,null,"Forte Securitizadora S.A."]